Cogmind - Beta 13 @@@ ROGUE MODE // 2024.08.05 @ 16:17:15 Player: Sgt. SmokeWeed Result: Self-destructed Performance ------------- Evolutions (4) 2000 Regions Visited (9) 1800 Robots Destroyed (73) 365 Value Destroyed (1695) 1695 Prototype IDs (24) 480 Alien Tech Used (0) 0 Bonus (90) 90 TOTAL SCORE: 6430 Bonus ------- High Alert Combat Kills 32 Follower Combat Kills 58 Cogmind --------- Core Integrity 788/850 Matter 300/300 Energy 310/310 System Corruption 4% Temperature Cool (0) Movement Treading (165) Location -6/Factory Parts ------- > --- POWER (1) -------- Fission Core > --- PROPULSION (2) --- Armored Treads Medium Treads > --- UTILITY (10) ----- 0b10 Alert Chip Improved Utility Shielding Improved Utility Shielding Improved Light Armor Plating > --- WEAPON (2) ------- Powered Hammer > --- INVENTORY (5) ---- Light Treads Axe Axe Axe Peak State ------------ > --- POWER ------------ Fission Core > --- PROPULSION ------- Armored Treads Medium Treads > --- UTILITY ---------- 0b10 Alert Chip Improved Utility Shielding Improved Utility Shielding Improved Light Armor Plating Reactive Plating > --- WEAPON ----------- Grenade Launcher Powered Hammer > --- INVENTORY -------- Light Treads Axe Axe Axe [Rating: 36] Favorites ----------- Power Light Ion Engine Engine Light Ion Engine Power Core Fission Core Propulsion Light Treads Treads Light Treads Leg Carbon-fiber Leg Flight Unit Flight Unit Utility Melee Analysis Suite Device Microactuators Processor Melee Analysis Suite Protection Improved Utility Shielding Weapon Powered Hammer Energy Gun Beamcaster Ballistic Gun Assault Rifle Ballistic Cannon Light Cannon Launcher Grenade Launcher Impact Weapon Powered Hammer Slashing Weapon Axe Build | -11 -10 -10 -9 -9 -9 -8 -8 -7 -6 ------- Run | Yrd Mat Min Mat Min Exi Min Mat Fac Fac Slots Evolved 8 | . . . 2 . . . 2 2 2 Power . | . . . . . . . . . . Propulsion . | . . . . . . . . . . Utility 8 | . . . 2 . . . 2 2 2 Weapon . | . . . . . . . . . . Parts Attached 47 | 5 4 . 13 5 3 4 7 2 4 Power 6 | 1 . . 2 1 . . 1 . 1 Engine 4 | 1 . . 2 1 . . . . . Core 2 | . . . . . . . 1 . 1 Reactor . | . . . . . . . . . . Propulsion 15 | 2 . . 3 2 1 3 3 1 . Treads 8 | 2 . . 1 . 1 . 3 1 . Leg 3 | . . . . . . 3 . . . Wheel . | . . . . . . . . . . Hover . | . . . . . . . . . . Flight 4 | . . . 2 2 . . . . . Utility 12 | . 1 . 3 1 1 1 2 1 2 Device 2 | . . . . 1 . 1 . . . Storage . | . . . . . . . . . . Processor 5 | . 1 . 3 . 1 . . . . Hackware . | . . . . . . . . . . Protection 5 | . . . . . . . 2 1 2 Artifact . | . . . . . . . . . . Weapon 14 | 2 3 . 5 1 1 . 1 . 1 Energy Gun 1 | . . . 1 . . . . . . Energy Cannon . | . . . . . . . . . . Ballistic Gun 3 | 2 1 . . . . . . . . Ballistic Cannon 1 | . 1 . . . . . . . . Launcher 6 | . 1 . 3 . . . 1 . 1 Special Weapon . | . . . . . . . . . . Impact Weapon 1 | . . . . 1 . . . . . Slashing Weapon 2 | . . . 1 . 1 . . . . Piercing Weapon . | . . . . . . . . . . Special Melee Weapon . | . . . . . . . . . . Unidentified Prototypes 1 | . . . . . . . 1 . . Corrupted Parts 3 | . . . . 1 . 1 1 . . System Corruption 21 | . . . . 3 . 3 15 . . Parts Lost 25 | . . . 6 4 . 2 9 2 2 Power 5 | . . . 2 1 . . 2 . . Propulsion 7 | . . . 1 2 . 1 3 . . Utility 7 | . . . . 1 . 1 3 1 1 Weapon 6 | . . . 3 . . . 1 1 1 Highest Loss Streak 4 | . . . 3 4 . 2 3 2 1 To Critical Strikes . | . . . . . . . . . . Average Slot Usage (%) 65 | . 74 71 69 55 83 80 61 47 58 Engine 6 | . 14 14 9 4 11 11 3 . . Core 2 | . . . . . . . 4 . 5 Treads 12 | . 28 28 20 . 7 1 8 15 13 Leg 2 | . . . . . . 18 7 . . Flight 2 | . . . 1 10 6 . . . . Device 2 | . . . . 5 11 4 . . . Processor 17 | . 3 . 16 25 31 33 21 9 6 Protection 5 | . . . . . . . 3 11 24 Ballistic Cannon 2 | . 11 14 3 . . . . . . Launcher 4 | . 12 14 9 . . . 4 2 . Impact Weapon 6 | . . . . 7 11 11 9 7 6 Slashing Weapon 1 | . . . 5 3 4 . . . . Naked Turns . | . . . . . . . . . . Heaviest Build 33 | 8 11 11 17 8 11 8 19 19 33 Greatest Support 48 | 40 40 40 40 8 20 30 40 48 48 Greatest Overweight (x) 2 | . . . . 1 2 . . . . Average Overweight (x) . | . . . . . . . . . . Largest Inventory Capacity 5 | 5 5 5 5 5 5 5 5 5 5 Average Capacity 5 | 5 5 5 5 5 5 5 5 5 5 Most Carried 5 | . 3 3 5 4 4 4 4 5 5 Average Carried 3 | . 2 3 3 4 3 4 4 4 4 Final Capacity 5 | 5 5 5 5 5 5 5 5 5 5 Final Carried 5 | . 3 3 4 4 4 4 4 5 4 Class Distribution -------------------- 95% | Mutant 4% | Gladiator Dominant Class ---------------- Mutant | -10/Materials Mutant | -10/Mines Mutant | -9/Materials Mutant | -9/Mines Mutant | -9/Exiles Mutant | -8/Mines Mutant | -8/Materials Mutant | -7/Factory Mutant | -6/Factory Resources | -11 -10 -10 -9 -9 -9 -8 -8 -7 -6 ----------- Run | Yrd Mat Min Mat Min Exi Min Mat Fac Fac Matter Collected 1048 | 187 68 19 269 250 43 38 119 10 45 Remotely . | . . . . . . . . . . Salvage Created 2196 | . 101 24 333 211 208 76 768 59 416 Parts 107 | . 23 1 33 7 5 2 27 1 8 Haulers Intercepted 2 | . . . . . . . 2 . . Recyclers Shooed . | . . . . . . . . . . Parts Field Recycled . | . . . . . . . . . . Retrieved Matter . | . . . . . . . . . . Parts Self-Destructed . | . . . . . . . . . . Prevented . | . . . . . . . . . . Kills | -11 -10 -10 -9 -9 -9 -8 -8 -7 -6 ------- Run | Yrd Mat Min Mat Min Exi Min Mat Fac Fac Combat Hostiles Destroyed 49 | . 4 2 15 6 . 2 16 1 3 Melee 18 | . . . 4 6 . . 7 . 1 Guns 5 | . 1 . 4 . . . . . . Cannons 2 | . 1 . 1 . . . . . . AOE 10 | . 2 2 6 . . . . . . Classes Destroyed 12 | . 4 . 3 1 . . 3 . 1 Worker 4 | . . . 2 1 . . 1 . . Builder 5 | . 2 . . 2 . . 1 . . Tunneler 1 | . . . . . . . 1 . . Hauler 2 | . . . . . . . 2 . . Recycler 3 | . . . . 1 . . . . 2 Mechanic 1 | . . . . . . . 1 . . Operator 3 | . . . 1 . . . 2 . . Watcher 5 | . 3 . 1 . . . 1 . . Swarmer 21 | . 3 . 8 5 . . 5 . . Grunt 21 | . 1 2 5 . . 2 10 . 1 Sentry 5 | . . . 2 . . . 1 1 1 Programmer 1 | . . . . . . . . . 1 Best Kill Streak 9 | . 3 1 8 3 . 2 9 1 2 Combat Bots Only 9 | . 3 1 6 3 . 2 9 1 1 Max Kills in Single Turn 3 | . 3 1 2 1 . 1 2 1 1 Gunslinging . | . . . . . . . . . . Exploded 2 | . 1 1 2 . . . . . . Melee 1 | . . . 1 1 . . 1 . 1 Uniques/NPCs Destroyed 1 | . . . . 1 . . . . . YI-UF0 (-9/Mines) Combat | -11 -10 -10 -9 -9 -9 -8 -8 -7 -6 -------- Run | Yrd Mat Min Mat Min Exi Min Mat Fac Fac Hostile Shots Fired 353 | . 13 20 81 17 . 15 90 63 54 Missed 107 | . 6 5 22 7 . 3 24 22 18 Damage Taken 3110 | . 102 234 620 218 . 258 813 253 612 Core 626 | . 6 46 125 138 . 37 192 20 62 Absorbed by Shields . | . . . . . . . . . . Ignored by Resistances 66 | . . . . . . . . 43 23 Core Remaining (%) 73 | 100 . 79 . . . 25 65 97 . Volleys Fired 50 | . 13 17 19 . . . . . 1 Largest 2 | . 2 2 2 . . . . . 1 Hottest 105 | . 65 65 105 . . . . . 30 Shots Fired 74 | . 20 21 29 . . . 3 . 1 Gun 14 | . 4 . 10 . . . . . . Cannon 33 | . 10 17 6 . . . . . . Launcher 27 | . 6 4 13 . . . 3 . 1 Special . | . . . . . . . . . . Kinetic 37 | . 14 17 6 . . . . . . Thermal 10 | . . . 10 . . . . . . Explosive 24 | . 6 4 13 . . . . . 1 Electromagnetic 3 | . . . . . . . 3 . . Robot Hit Streak 6 | . 3 3 6 . . . 2 . 1 Robot Miss Streak 3 | . 2 3 2 . . . 1 . . Penetration Max . | . . . . . . . . . . Secondary Targets . | . . . . . . . . . . Shots Hit Robots 126 | . 8 10 24 11 9 7 40 5 12 Core Hits 65 | . 12 4 29 6 2 . 9 . 3 Critical Kills 3 | . . . . . . . 3 . . Critical Parts Destroyed 11 | . . . . . . 2 5 1 3 Critical Strikes 17 | . . 1 2 . . 2 8 1 3 Burn 2 | . . . 2 . . . . . . Blast 1 | . . 1 . . . . . . . Smash 14 | . . . . . . 2 8 1 3 Melee Attacks 131 | . . . 16 12 9 7 59 7 21 Impact 102 | . . . . 4 4 7 59 7 21 Slashing 29 | . . . 16 8 5 . . . . Piercing . | . . . . . . . . . . Sneak Attacks 14 | . . . 2 4 . . 6 . 2 Combat Hostiles . | . . . . . . . . . . Follow-up Attacks . | . . . . . . . . . . Damage Inflicted 6662 | . 340 325 1278 632 706 331 2189 178 683 Guns 121 | . 37 . 84 . . . . . . Cannons 268 | . 71 134 63 . . . . . . Explosions 1380 | . 232 191 685 . . . 241 . 31 Melee 4893 | . . . 446 632 706 331 1948 178 652 Ramming . | . . . . . . . . . . Kinetic 305 | . 108 134 63 . . . . . . Thermal 260 | . . . 84 . . . 176 . . Explosive 1139 | . 232 191 685 . . . . . 31 Electromagnetic 65 | . . . . . . . 65 . . Impact 3808 | . . . . 353 346 331 1948 178 652 Slashing 1085 | . . . 446 279 360 . . . . Piercing . | . . . . . . . . . . Highest Corruption 17 | . . . . 3 3 6 17 . 4 Average Corruption 6 | . . . . 3 3 5 14 . 3 Corruption Purged . | . . . . . . . . . . Corruption Blocked . | . . . . . . . . . . Effects 53 | . . . . 7 11 1 30 . 4 Message Errors 16 | . . . . 2 4 1 8 . 1 Matter Fused 8 | . . . . 1 4 . 2 . 1 Heat Flow Errors 10 | . . . . 1 1 . 8 . . Energy Discharges 7 | . . . . 2 2 . 3 . . Data Loss (minor) 8 | . . . . . . . 6 . 2 Data Loss (major) 1 | . . . . 1 . . . . . Misfires 3 | . . . . . . . 3 . . Overload Shots . | . . . . . . . . . . Overflow Damage 1644 | . 7 1 77 224 150 126 720 29 310 Projectiles 7 | . 7 . . . . . . . . Explosions 62 | . . 1 3 . . . 49 . 9 Melee 1575 | . . . 74 224 150 126 671 29 301 Knockbacks 26 | . 1 3 . 1 1 3 11 . 6 Impact 21 | . . . . 1 1 3 11 . 5 Kinetic 4 | . 1 3 . . . . . . . Secondary 1 | . . . . . . . . . 1 Self-Inflicted Damage 140 | . 46 5 . . . . 50 . 39 Shots 8 | . 2 1 . . . . 4 . 1 Rammed 1 | . 1 . . . . . . . . Targets Rammed 1 | . 1 . . . . . . . . Kicked . | . . . . . . . . . . Crushed . | . . . . . . . . . . Highest Temperature 267 | . 6 78 212 162 92 7 267 . . Average Temperature 76 | . 2 44 74 92 50 7 107 . . Received Heat Transfer 897 | . 6 150 165 . . 138 315 78 45 Siege Activations . | . . . . . . . . . . Robots Corrupted . | . . . . . . . . . . Combat Hostiles . | . . . . . . . . . . Parts Fried 31 | . . . . 4 2 1 15 . 9 Impact Corruptions 56 | . . . . 8 3 3 29 1 12 Robots Melted . | . . . . . . . . . . Combat Hostiles . | . . . . . . . . . . Parts Melted . | . . . . . . . . . . Heat Transferred 396 | . . . 296 . . . 100 . . Parts Sabotaged . | . . . . . . . . . . Parts Stolen . | . . . . . . . . . . Parts Stripped . | . . . . . . . . . . Power Chain Reactions . | . . . . . . . . . . Alert | -11 -10 -10 -9 -9 -9 -8 -8 -7 -6 ------- Run | Yrd Mat Min Mat Min Exi Min Mat Fac Fac Peak Influence 545 | . 205 92 545 269 . 30 209 58 98 Initial 134 | . . 12 35 134 . . 11 42 28 Average 110 | . 78 83 320 197 . 22 103 51 36 Maximum Alert Level 2 | . 1 . 2 1 . . 1 . . Low Security (%) 82 | 100 91 100 31 24 . 100 96 100 100 Level 1 12 | . 8 . 12 75 . . 3 . . Level 2 5 | . . . 55 . . . . . . Level 3 . | . . . . . . . . . . Level 4 . | . . . . . . . . . . Level 5 . | . . . . . . . . . . High Security . | . . . . . . . . . . Max Security . | . . . . . . . . . . Squads Dispatched 9 | . 1 . 3 . . . 3 . 2 Investigation 1 | . . . . . . . 1 . . Extermination 2 | . . . . . . . . . 2 Reinforcement 6 | . 1 . 3 . . . 2 . . Assault . | . . . . . . . . . . Garrison . | . . . . . . . . . . Intercept . | . . . . . . . . . . Searches Triggered . | . . . . . . . . . . Construction Impeded . | . . . . . . . . . . Haulers Reinforced . | . . . . . . . . . . Active Scanning Responses . | . . . . . . . . . . Cargo Convoy Interrupts . | . . . . . . . . . . Stealth | -11 -10 -10 -9 -9 -9 -8 -8 -7 -6 --------- Run | Yrd Mat Min Mat Min Exi Min Mat Fac Fac Distress Signals 6 | . . . 3 . . . 3 . . Communications Jammed . | . . . . . . . . . . Distress Signals . | . . . . . . . . . . Times Spotted 98 | . 7 2 25 9 . 3 33 1 18 Peak Tracking Total 10 | . 3 2 7 4 . 3 6 1 10 Tactical Retreats 7 | . . . . 1 . . 4 . 2 Traps | -11 -10 -10 -9 -9 -9 -8 -8 -7 -6 ------- Run | Yrd Mat Min Mat Min Exi Min Mat Fac Fac Traps Triggered 1 | . . . . . . . 1 . . Indirectly . | . . . . . . . . . . Trap Hack Attempts . | . . . . . . . . . . Triggered . | . . . . . . . . . . Disarmed . | . . . . . . . . . . Reprogrammed . | . . . . . . . . . . Reused . | . . . . . . . . . . Traps Extracted . | . . . . . . . . . . Installed . | . . . . . . . . . . Triggered . | . . . . . . . . . . Machines | -11 -10 -10 -9 -9 -9 -8 -8 -7 -6 ---------- Run | Yrd Mat Min Mat Min Exi Min Mat Fac Fac Machines Disabled 5 | . . . . . . . 5 . . Max in Single Turn 4 | . . . . . . . 4 . . Machines Repaired . | . . . . . . . . . . Machines Dismantled . | . . . . . . . . . . Machines Sabotaged . | . . . . . . . . . . Overloaded Fab Kills . | . . . . . . . . . . Hacking | -11 -10 -10 -9 -9 -9 -8 -8 -7 -6 --------- Run | Yrd Mat Min Mat Min Exi Min Mat Fac Fac Machines Accessed 9 | . . . 2 1 1 . 4 . 1 Terminals 7 | . . . 2 . . . 4 . 1 Fabricators . | . . . . . . . . . . Repair Stations . | . . . . . . . . . . Recycling Units . | . . . . . . . . . . Scanalyzers . | . . . . . . . . . . Garrison Access . | . . . . . . . . . . Total Hacks 13 | . . . 2 1 1 . 8 . 1 Successful 6 | . . . . 1 1 . 3 . 1 Failed 7 | . . . 2 . . . 5 . . Catastrophic 2 | . . . 1 . . . 1 . . Database Lockouts . | . . . . . . . . . . Manual 6 | . . . 2 . 1 . 3 . . Terminals 11 | . . . 2 . . . 8 . 1 Fabricators . | . . . . . . . . . . Repair Stations . | . . . . . . . . . . Recycling Units . | . . . . . . . . . . Scanalyzers . | . . . . . . . . . . Garrison Access . | . . . . . . . . . . Terminal Hacks 6 | . . . . 1 1 . 3 . 1 Robot Analysis 1 | . . . . . . . 1 . . Open Door 1 | . . . . 1 . . . . . Unreport Threat 1 | . . . . . . . 1 . . Hauler Manifests 1 | . . . . . . . 1 . . Registered Components 1 | . . . . . . . . . 1 Derelict Proto ID Bank 1 | . . . . . 1 . . . . Fabricator Hacks . | . . . . . . . . . . Repair Station Hacks . | . . . . . . . . . . Recycling Unit Hacks . | . . . . . . . . . . Scanalyzer . | . . . . . . . . . . Garrison Access Hacks . | . . . . . . . . . . Unauthorized Hacks . | . . . . . . . . . . Terminals . | . . . . . . . . . . Fabricators . | . . . . . . . . . . Repair Stations . | . . . . . . . . . . Recycling Units . | . . . . . . . . . . Scanalyzers . | . . . . . . . . . . Garrison Access . | . . . . . . . . . . Data Cores Recovered . | . . . . . . . . . . Used . | . . . . . . . . . . Hacking Detections 4 | . . . 2 . . . 2 . . Full Trace Events 1 | . . . . . . . 1 . . Feedback Events . | . . . . . . . . . . Feedback Blocked . | . . . . . . . . . . Robot Schematics Acquired . | . . . . . . . . . . Robots Built . | . . . . . . . . . . Authchips . | . . . . . . . . . . Time . | . . . . . . . . . . Total Robot Build Rating . | . . . . . . . . . . Part Schematics Acquired . | . . . . . . . . . . Parts Built . | . . . . . . . . . . Authchips . | . . . . . . . . . . Time . | . . . . . . . . . . Total Part Build Rating . | . . . . . . . . . . Parts Repaired . | . . . . . . . . . . Time . | . . . . . . . . . . Parts Recycled . | . . . . . . . . . . Recycled Matter . | . . . . . . . . . . Retrieved Matter . | . . . . . . . . . . Retrieved Components . | . . . . . . . . . . Parts Scanalyzed . | . . . . . . . . . . Part Schematics Acquired . | . . . . . . . . . . Parts Damaged . | . . . . . . . . . . Bothacking | -11 -10 -10 -9 -9 -9 -8 -8 -7 -6 ------------ Run | Yrd Mat Min Mat Min Exi Min Mat Fac Fac Used RIF Installer . | . . . . . . . . . . Robots Hacked . | . . . . . . . . . . Non-combat . | . . . . . . . . . . Combat . | . . . . . . . . . . Robot Hacks Applied . | . . . . . . . . . . Relay Couplers Released . | . . . . . . . . . . Fabnet Peak Effective % . | . . . . . . . . . . Robots Rewired 2 | . . . . . 2 . . . . Allies Hacked . | . . . . . . . . . . Hacks Repelled . | . . . . . . . . . . Allies | -11 -10 -10 -9 -9 -9 -8 -8 -7 -6 -------- Run | Yrd Mat Min Mat Min Exi Min Mat Fac Fac Total Allies 3 | . . 1 . . 2 . . . . Largest Group 2 | . . 1 1 . 2 2 . . . Highest-Rated Group 42 | . . 31 31 . 42 42 . . . Highest-Rated Ally 31 | . . 31 31 . 21 21 . . . Total Orders . | . . . . . . . . . . Ally Attacks 10 | . . . 9 . . 1 . . . Total Damage 181 | . . . 147 . . 34 . . . Kills 2 | . . . 2 . . . . . . Allies Corrupted . | . . . . . . . . . . Allies Melted . | . . . . . . . . . . Intel | -11 -10 -10 -9 -9 -9 -8 -8 -7 -6 ------- Run | Yrd Mat Min Mat Min Exi Min Mat Fac Fac Robot Analysis Total 1 | . . . . . . . 1 . . Derelict Logs Recovered 2 | . . 1 . 1 . . . . . Drone Launches . | . . . . . . . . . . Drone Recoveries . | . . . . . . . . . . Exploration | -11 -10 -10 -9 -9 -9 -8 -8 -7 -6 ------------- Run | Yrd Mat Min Mat Min Exi Min Mat Fac Fac Turns Passed 4789 | 92 525 166 416 484 632 181 1262 217 814 Spaces Moved 3066 | 55 290 73 210 611 737 127 405 113 445 Core 198 | 2 . . . 193 1 . 2 . . Treads 1783 | 53 290 73 170 . 264 8 367 113 445 Legs 155 | . . . . . . 119 36 . . Wheels . | . . . . . . . . . . Hover . | . . . . . . . . . . Flight 930 | . . . 40 418 472 . . . . Fastest Speed 37 | 50 160 160 37 37 37 120 50 165 165 Average Speed 117 | 156 160 160 136 53 81 122 157 165 165 Slowest Speed 165 | 160 160 160 160 120 160 160 165 165 165 Overloaded Moves . | . . . . . . . . . . Propulsion Burnouts . | . . . . . . . . . . Robots Hopped 6 | . . . . 2 4 . . . . Cave-ins Triggered . | . . . . . . . . . . Exploration Rate (%) 36 | 3 54 23 27 74 91 35 38 3 14 Regions Visited 9 Branch Regions 4 Pre-discovered Areas . | . . . . . . . . . . Known Exits Taken 1 | . 1 . . . . . . . . Unknown Exits Taken 8 | 1 . 1 1 1 1 1 1 1 . Scrap Searched 1 | . . . . 1 . . . . . Spaces Dug 10 | . . . 3 . . . 3 . 4 Terrain Destroyed 158 | . 35 28 76 . . . 11 . 8 Melee 10 | . . . 3 . . . 3 . 4 Projectile 2 | . . 1 1 . . . . . . AOE 146 | . 35 27 72 . . . 8 . 4 Terrain Rammed . | . . . . . . . . . . Walls Destroyed . | . . . . . . . . . . Machines Disabled . | . . . . . . . . . . Actions | -11 -10 -10 -9 -9 -9 -8 -8 -7 -6 --------- Run | Yrd Mat Min Mat Min Exi Min Mat Fac Fac Total 3947 | 59 331 101 278 744 756 139 924 130 485 Wait 637 | . 17 12 13 118 . 1 453 9 14 Move 3045 | 54 289 72 209 606 728 126 404 112 445 Hop 6 | . . . . 2 4 . . . . Pick Up 7 | . 3 . 3 . 1 . . . . Fast Attach 41 | 5 4 . 9 5 2 4 8 1 3 Attach 5 | . . . 3 . 1 . . . 1 Detach 1 | . . . 1 . . . . . . Swap 2 | . . . 1 . . . . 1 . Drop 13 | . 4 . 4 1 3 1 . . . Fire 50 | . 13 17 19 . . . . . 1 Melee 131 | . . . 16 12 9 7 59 7 21 Ram . | . . . . . . . . . . Kick . | . . . . . . . . . . Crush 1 | . 1 . . . . . . . . Escape Stasis . | . . . . . . . . . . Rewire 8 | . . . . . 8 . . . . Trap . | . . . . . . . . . . Miscellaneous . | . . . . . . . . . . Route ------- -11/Scrapyard -10/Materials (discovered 2 exits: *Mat / *Min) -10/Mines -9/Materials (discovered 2 exits: *Min x2) -9/Mines (discovered 2 exits: *Mat / *Exi) -9/Exiles -8/Mines -8/Materials -7/Factory -6/Factory History --------- Turn | Location | Event 15 | -11/Scrapyard | Discovered new exit (range 15) 93 | -11/Scrapyard | Entered Materials 234 | -10/Materials | Discovered new exit (range 6) 307 | -10/Materials | Discovered new exit (range 9) 311 | -10/Materials | Build established: Mutant 616 | -10/Materials | Identified exit to Mines 618 | -10/Materials | Entered Mines 733 | -10/Mines | Learned Materials emergency access door positions 748 | -10/Mines | Discovered new exit (range 11) 773 | -10/Mines | Received a Mining Laser from a helpful Derelict 784 | -10/Mines | Entered Materials 784 | -9/Materials | Accompanied by 1 ally 784 | -9/Materials | Evolved 2 slots: Utility x2 964 | -9/Materials | Discovered new exit (range 15) 1196 | -9/Materials | Discovered new exit (range 10) 1200 | -9/Materials | Entered Mines 1201 | -9/Mines | Lost 3 parts (1p1n1w) 1351 | -9/Mines | Core integrity fell below 50% 1353 | -9/Mines | Destroyed YI-UF0 1368 | -9/Mines | Met a Derelict who couldn't figure out how to use a Trap Extractor 1383 | -9/Mines | Lost 4 parts (1p2n1u) 1525 | -9/Mines | Found a hidden stash of uninstalled traps 1529 | -9/Mines | Discovered new exit (range 13) 1682 | -9/Mines | Deemed a non-threat by the Exiles lab entrance 1682 | -9/Mines | Discovered new exit (range 5) 1684 | -9/Mines | Entered Exiles 1684 | -9/Exiles | Found Exiles lab destroyed 1747 | -9/Exiles | Opened EX-Vault 1751 | -9/Exiles | Found 0b10 Alert Chip 1844 | -9/Exiles | Discovered new exit (range 10) 2316 | -9/Exiles | Entered Mines 2316 | -8/Mines | Accompanied by 2 allies 2490 | -8/Mines | Discovered new exit (range 5) 2497 | -8/Mines | Entered Materials 2497 | -8/Materials | Evolved 2 slots: Utility x2 3015 | -8/Materials | Lost 3 parts (1p1n1u) 3025 | -8/Materials | Destroyed 9 combat bots 3186 | -8/Materials | System corruption reached 10% 3621 | -8/Materials | Discovered new exit (range 16) 3759 | -8/Materials | Entered Factory 3759 | -7/Factory | Evolved 2 slots: Utility x2 3971 | -7/Factory | Discovered new exit (range 3) 3976 | -7/Factory | Entered another Factory area 3976 | -6/Factory | Evolved 2 slots: Utility x2 4790 | -6/Factory | Self-destructed Last Messages --------------- R-10 Processor system corrupted by crushing effect. R-10 Processor knocked back. R-10 Processor system terminally corrupted. Imp. Ion Engine fried. Hpw. Tractor Beam fried. Com. Wheel fried. K-01 Serf collects debris. R-10 Processor collects Corrupted Med. Storage Unit. K-01 Serf cleans the Terminal. C-30 ARC bursts open, deploying its payload. G-50 Soldier unfolds itself. Destroyed Lgt. Angular Momentum Engine. G-50 Soldier system corrupted by crushing effect. G-50 Soldier system terminally corrupted. Carbon-fiber Leg fried. K-01 Serf collects debris. K-01 Serf cleans the Terminal. G-50 Soldier knocked back. Reactive Plating destroyed. K-01 Serf collects debris. Map ----- +----------------------------------------------------+ | ?????????????????????????????????????????????????? | | ?????????????????????????????????????????????????? | | ?????????????????????????????????????????????????? | | ?????????????????????????????????????????????????? | | ?????????????????????????????????????????????????? | | ?????????????????????????????????????????????????? | | ?????????????????????????????????????????????????? | | ?????????????????????????????????????????????????? | | ?????????????????????????????????????????????????? | | ?????????????????????????????????????????????????? | | ????????????????????????? ???????????????????????? | | ????????????????????????? ???????????????????????? | | ????????????????????????? ???????????????????????? | | ????!??????????????????? ???????????????????????? | | ???????????????????????? ???????????????????????? | | ???????????????????????? ???????????????????????? | | ???????????????????????? "???????????????????????? | | ???????????????????????##+####?###???????????????? | | ???????????????????##### %wu A k ???????????????? | | ???????????????????# u ???????????????? | | ???????????????????# gg ???????????????? | | ???????????????????# """ """ """ ???????????????? | | ???????????????????# """l""" """ ""?????????????? | | ???????????????????# """ """ """ """ ""?????????? | | ???????????????????# R k ???????? | | ???????????????????# w@ % k ???????? | | ???????????????????# gpg######"""T""????????????? | | ???????????????????# g#???????????????????????? | | ???????????????????# #???????????????????????? | | ???????????????????# #???????????????????????! | | ???????????????????# #???????????????????????? | | ???#####+###########u ####### ????????????????? | | ?""""" % ?????????????? | | ""T"" H ?????????????? | | ? ?????????????? | | """ """ % ??????????????? | | """ """ ??????????????? | | """ """ #### ################ ???????????????? | | """ """ #??# #???????????????? ???????????????? | | ####+#########????????????????????????? | | # #????????????????????????? | | # " " " " " #????????????????????????? | | = # " " " " " #????????????????????????? | | # " " " " " #????????????????????????? | | #+#### # " " " " " #????????????????????????? | | # # " " " " " #????????????????????????? | | """ # # " " " " " #????????????????????????? | | R" + + " " " " " #????????????????????????? | | """ # # " " " " " ###############??????????? | | # # " " " " " ## #??????????? | +----------------------------------------------------+ Best States ------------- Heat Dissipation 37 Energy Generation 18 Energy Capacity 310 Matter Stores 300 Matter Capacity 300 Sight Range 16 Terrain Scan Density 10 Armor Coverage 300 Resistance: KI 20 Utility Shielding 66 Melee Speed Boost 20 Evasion (%) 62 Melee Accuracy 15 Recoil Reduction 2 Item Schematics ----------------- None Robot Schematics ------------------ None Fabricated ------------ Nothing Alien Tech Used ----------------- None Achievements -------------- None Challenges ------------ None Game ------ Seed AluminumPointyVibroblade Manual? 0 Play Time 00:27:05 Cumulative 62.9 hours Start 2024.08.04 @ 18:19:29 End 2024.08.05 @ 16:17:15 Sessions 3 Manual Loads 0 Difficulty Rogue Special Mode None Game No. 144 Rogue 69 Adventurer 75 Explorer 0 Win Type - Total 0 Types 0/0/0/0/0/0/0/0/0 Lore% 37 Gallery% 43 Achievement% 33 Wizard Run 0 Options --------- Layout 0 ASCII 0 Keyboard 0 Movement Mouse Keybinds 0 Fullscreen 1 Font 24/Smallcaps Map View 76x50 Zoom Use 0% Tactical HUD 0 Map Filters NONE Filters NONE Steam 1 RUN: 9ec2c251-147e-4557-825e-4ef1c4d015cb